Cogmind - Beta 13 @@@ ROGUE MODE // 2024.04.28 @ 16:25:34 Player: e.v.o Result: Self-destructed Performance ------------- Evolutions (1) 500 Regions Visited (2) 400 Robots Destroyed (20) 100 Value Destroyed (429) 429 Prototype IDs (0) 0 Alien Tech Used (0) 0 Bonus (0) 0 TOTAL SCORE: 1429 Bonus ------- None Cogmind --------- Core Integrity 366/400 Matter 217/300 Energy 250/250 System Corruption 0% Temperature Warm (108) Movement Hovering (180) Ox2 Location -9/Materials Parts ------- > --- POWER (1) -------- Ion Engine > --- PROPULSION (4) --- Improved Hover Unit > --- UTILITY (2) ------ Medium Storage Unit Visual Processing Unit > --- WEAPON (2) ------- Light Cannon > --- INVENTORY (10) --- Hover Unit Hover Unit Hover Unit Machine Analyzer Light Armor Plating Heavy Assault Rifle Heavy Assault Rifle Peak State ------------ > --- POWER ------------ Ion Engine > --- PROPULSION ------- Improved Hover Unit Improved Hover Unit Improved Hover Unit Improved Hover Unit > --- UTILITY ---------- Medium Storage Unit Visual Processing Unit > --- WEAPON ----------- Light Assault Rifle Light Assault Rifle > --- INVENTORY -------- Hover Unit Hover Unit Machine Analyzer Light Armor Plating Heavy Assault Rifle Heavy Assault Rifle Light Cannon [Rating: 15] Favorites ----------- Power Light Ion Engine Engine Light Ion Engine Propulsion Light Treads Treads Light Treads Leg Aluminum Leg Hover Unit Improved Hover Unit Flight Unit Flight Unit Utility Visual Processing Unit Storage Small Storage Unit Processor Visual Processing Unit Weapon Light Assault Rifle Energy Cannon Beam Cannon Ballistic Gun Light Assault Rifle Ballistic Cannon Light Cannon Build | -11 -10 -9 ------- Run | Yrd Mat Mat Slots Evolved 2 | . . 2 Power . | . . . Propulsion 2 | . . 2 Utility . | . . . Weapon . | . . . Parts Attached 34 | 6 16 12 Power 7 | 1 4 2 Engine 7 | 1 4 2 Core . | . . . Reactor . | . . . Propulsion 13 | 2 3 8 Treads 2 | . 2 . Leg 3 | 2 1 . Wheel . | . . . Hover 4 | . . 4 Flight 4 | . . 4 Utility 3 | 1 2 . Device . | . . . Storage 2 | 1 1 . Processor 1 | . 1 . Hackware . | . . . Protection . | . . . Artifact . | . . . Weapon 11 | 2 7 2 Energy Gun . | . . . Energy Cannon 3 | . 3 . Ballistic Gun 6 | 2 3 1 Ballistic Cannon 2 | . 1 1 Launcher . | . . . Special Weapon . | . . . Impact Weapon . | . . . Slashing Weapon . | . . . Piercing Weapon . | . . . Special Melee Weapon . | . . . Unidentified Prototypes . | . . . Parts Lost 8 | . 3 5 Power 2 | . 1 1 Propulsion 4 | . 1 3 Utility . | . . . Weapon 2 | . 1 1 Highest Loss Streak 4 | . 3 4 To Critical Strikes . | . . . Average Slot Usage (%) 93 | . 93 94 Engine 13 | . 14 9 Treads 18 | . 22 . Leg 4 | . 5 . Hover 6 | . . 31 Flight 1 | . . 8 Storage 13 | . 14 11 Processor 11 | . 11 11 Energy Cannon 3 | . 4 . Ballistic Gun 18 | . 19 14 Ballistic Cannon 1 | . . 7 Naked Turns . | . . . Heaviest Build 19 | 11 19 19 Greatest Support 40 | 20 40 28 Greatest Overweight (x) 2 | . . 2 Average Overweight (x) . | . . . Largest Inventory Capacity 10 | 8 10 10 Average Capacity 8 | 6 8 10 Most Carried 10 | 3 10 8 Average Carried 6 | 1 6 6 Final Capacity 10 | 8 10 10 Final Carried 9 | 3 9 7 Class Distribution -------------------- 92% | Mutant 4% | Scavenger-Sprinter 3% | Scavenger-Mutant Dominant Class ---------------- Mutant | -10/Materials Mutant | -9/Materials Resources | -11 -10 -9 ----------- Run | Yrd Mat Mat Matter Collected 609 | 260 263 86 Remotely . | . . . Salvage Created 558 | . 393 165 Parts 54 | . 38 16 Haulers Intercepted 1 | . 1 . Recyclers Shooed 1 | . 1 . Parts Field Recycled . | . . . Retrieved Matter . | . . . Parts Self-Destructed . | . . . Prevented . | . . . Kills | -11 -10 -9 ------- Run | Yrd Mat Mat Combat Hostiles Destroyed 13 | . 10 3 Guns 6 | . 5 1 Cannons 6 | . 4 2 AOE 1 | . 1 . Classes Destroyed 8 | . 7 1 Tunneler 1 | . 1 . Hauler 1 | . 1 . Recycler 1 | . 1 . Mechanic 1 | . 1 . Watcher 3 | . 2 1 Swarmer 6 | . 6 . Grunt 5 | . 4 1 Sentry 2 | . . 2 Best Kill Streak 3 | . 3 2 Combat Bots Only 3 | . 3 2 Max Kills in Single Turn 2 | . 2 1 Gunslinging . | . . . Exploded 1 | . 1 . Melee . | . . . Uniques/NPCs Destroyed . | . . . Combat | -11 -10 -9 -------- Run | Yrd Mat Mat Hostile Shots Fired 123 | . 76 47 Missed 36 | . 20 16 Damage Taken 1164 | . 774 390 Core 169 | . 135 34 Absorbed by Shields . | . . . Core Remaining (%) 73 | 100 46 . Volleys Fired 93 | . 79 14 Largest 2 | . 2 2 Hottest 120 | . 120 55 Shots Fired 156 | . 128 28 Gun 120 | . 104 16 Cannon 36 | . 24 12 Launcher . | . . . Special . | . . . Kinetic 132 | . 104 28 Thermal 24 | . 24 . Explosive . | . . . Electromagnetic . | . . . Robot Hit Streak 16 | . 16 6 Robot Miss Streak 4 | . 4 2 Penetration Max . | . . . Secondary Targets . | . . . Shots Hit Robots 92 | . 74 18 Core Hits 39 | . 32 7 Critical Kills . | . . . Critical Parts Destroyed . | . . . Critical Strikes . | . . . Melee Attacks . | . . . Impact . | . . . Slashing . | . . . Piercing . | . . . Sneak Attacks . | . . . Combat Hostiles . | . . . Follow-up Attacks . | . . . Damage Inflicted 1310 | . 1057 253 Guns 607 | . 540 67 Cannons 432 | . 246 186 Explosions 262 | . 262 . Melee . | . . . Ramming 9 | . 9 . Kinetic 793 | . 540 253 Thermal 246 | . 246 . Explosive 262 | . 262 . Electromagnetic . | . . . Impact . | . . . Slashing . | . . . Piercing . | . . . Highest Corruption . | . . . Average Corruption . | . . . Corruption Purged . | . . . Corruption Blocked . | . . . Overload Shots . | . . . Overflow Damage 59 | . 59 . Projectiles . | . . . Explosions 59 | . 59 . Melee . | . . . Knockbacks 1 | . . 1 Impact . | . . . Kinetic 1 | . . 1 Secondary . | . . . Self-Inflicted Damage 198 | . 198 . Shots 2 | . 2 . Rammed 4 | . 4 . Targets Rammed 4 | . 4 . Kicked . | . . . Crushed . | . . . Highest Temperature 311 | . 311 112 Average Temperature 117 | . 145 40 Received Heat Transfer 360 | . 171 189 Effects 1 | . 1 . Energy Bleed 1 | . 1 . Siege Activations . | . . . Robots Corrupted . | . . . Combat Hostiles . | . . . Parts Fried . | . . . Impact Corruptions . | . . . Robots Melted . | . . . Combat Hostiles . | . . . Parts Melted . | . . . Heat Transferred 518 | . 518 . Parts Sabotaged . | . . . Parts Stolen . | . . . Parts Stripped . | . . . Power Chain Reactions . | . . . Alert | -11 -10 -9 ------- Run | Yrd Mat Mat Peak Influence 239 | . 239 221 Initial 24 | . . 24 Average 104 | . 114 98 Maximum Alert Level 1 | . 1 1 Low Security (%) 83 | 100 80 86 Level 1 16 | . 19 13 Level 2 . | . . . Level 3 . | . . . Level 4 . | . . . Level 5 . | . . . High Security . | . . . Max Security . | . . . Squads Dispatched 3 | . 1 2 Investigation 1 | . . 1 Extermination . | . . . Reinforcement 2 | . 1 1 Assault . | . . . Garrison . | . . . Intercept . | . . . Searches Triggered . | . . . Construction Impeded . | . . . Haulers Reinforced . | . . . Active Scanning Responses . | . . . Cargo Convoy Interrupts . | . . . Stealth | -11 -10 -9 --------- Run | Yrd Mat Mat Distress Signals 1 | . 1 . Communications Jammed . | . . . Distress Signals . | . . . Times Spotted 35 | . 21 14 Peak Tracking Total 11 | . 3 11 Tactical Retreats 4 | . 2 2 Traps | -11 -10 -9 ------- Run | Yrd Mat Mat Traps Triggered . | . . . Indirectly . | . . . Trap Hack Attempts . | . . . Triggered . | . . . Disarmed . | . . . Reprogrammed . | . . . Reused . | . . . Traps Extracted . | . . . Installed . | . . . Triggered . | . . . Machines | -11 -10 -9 ---------- Run | Yrd Mat Mat Machines Disabled 2 | . 2 . Max in Single Turn 2 | . 2 . Machines Repaired . | . . . Machines Dismantled . | . . . Machines Sabotaged . | . . . Overloaded Fab Kills . | . . . Hacking | -11 -10 -9 --------- Run | Yrd Mat Mat Machines Accessed 2 | . 1 1 Terminals 2 | . 1 1 Fabricators . | . . . Repair Stations . | . . . Recycling Units . | . . . Scanalyzers . | . . . Garrison Access . | . . . Total Hacks 6 | . 4 2 Successful 1 | . 1 . Failed 5 | . 3 2 Catastrophic 3 | . 1 2 Database Lockouts . | . . . Manual . | . . . Terminals 6 | . 4 2 Fabricators . | . . . Repair Stations . | . . . Recycling Units . | . . . Scanalyzers . | . . . Garrison Access . | . . . Terminal Hacks 1 | . 1 . Unreport Threat 1 | . 1 . Fabricator Hacks . | . . . Repair Station Hacks . | . . . Recycling Unit Hacks . | . . . Scanalyzer . | . . . Garrison Access Hacks . | . . . Unauthorized Hacks . | . . . Terminals . | . . . Fabricators . | . . . Repair Stations . | . . . Recycling Units . | . . . Scanalyzers . | . . . Garrison Access . | . . . Data Cores Recovered . | . . . Used . | . . . Hacking Detections 2 | . 1 1 Full Trace Events 1 | . . 1 Feedback Events . | . . . Feedback Blocked . | . . . Robot Schematics Acquired . | . . . Robots Built . | . . . Authchips . | . . . Time . | . . . Total Robot Build Rating . | . . . Part Schematics Acquired . | . . . Parts Built . | . . . Authchips . | . . . Time . | . . . Total Part Build Rating . | . . . Parts Repaired . | . . . Time . | . . . Parts Recycled . | . . . Recycled Matter . | . . . Retrieved Matter . | . . . Retrieved Components . | . . . Parts Scanalyzed . | . . . Part Schematics Acquired . | . . . Parts Damaged . | . . . Bothacking | -11 -10 -9 ------------ Run | Yrd Mat Mat Used RIF Installer . | . . . Robots Hacked . | . . . Non-combat . | . . . Combat . | . . . Robot Hacks Applied . | . . . Relay Couplers Released . | . . . Fabnet Peak Effective % . | . . . Robots Rewired . | . . . Allies Hacked . | . . . Hacks Repelled . | . . . Allies | -11 -10 -9 -------- Run | Yrd Mat Mat Total Allies . | . . . Largest Group . | . . . Highest-Rated Group . | . . . Highest-Rated Ally . | . . . Total Orders . | . . . Ally Attacks . | . . . Total Damage . | . . . Kills . | . . . Allies Corrupted . | . . . Allies Melted . | . . . Intel | -11 -10 -9 ------- Run | Yrd Mat Mat Robot Analysis Total . | . . . Derelict Logs Recovered . | . . . Drone Launches . | . . . Drone Recoveries . | . . . Exploration | -11 -10 -9 ------------- Run | Yrd Mat Mat Turns Passed 1091 | 68 824 199 Spaces Moved 610 | 52 385 173 Core 8 | 8 . . Treads 306 | . 306 . Legs 123 | 44 79 . Wheels . | . . . Hover 106 | . . 106 Flight 67 | . . 67 Fastest Speed 31 | 50 120 31 Average Speed 118 | 109 151 46 Slowest Speed 180 | 120 160 180 Overloaded Moves . | . . . Propulsion Burnouts . | . . . Robots Hopped . | . . . Cave-ins Triggered . | . . . Exploration Rate (%) 20 | 4 42 15 Regions Visited 2 Branch Regions . Pre-discovered Areas . | . . . Known Exits Taken . | . . . Unknown Exits Taken 2 | 1 1 . Scrap Searched . | . . . Spaces Dug . | . . . Terrain Destroyed 25 | . 25 . Melee . | . . . Projectile . | . . . AOE 25 | . 25 . Terrain Rammed . | . . . Walls Destroyed . | . . . Machines Disabled . | . . . Actions | -11 -10 -9 --------- Run | Yrd Mat Mat Total 841 | 60 515 266 Wait 55 | . . 55 Move 608 | 51 384 173 Hop . | . . . Pick Up 22 | 3 15 4 Fast Attach 17 | 6 6 5 Attach 6 | . 2 4 Detach . | . . . Swap 11 | . 8 3 Drop 25 | . 17 8 Fire 93 | . 79 14 Melee . | . . . Ram . | . . . Kick . | . . . Crush 4 | . 4 . Escape Stasis . | . . . Rewire . | . . . Trap . | . . . Miscellaneous . | . . . Route ------- -11/Scrapyard -10/Materials -9/Materials History --------- Turn | Location | Event 15 | -11/Scrapyard | Discovered new exit (range 15) 69 | -11/Scrapyard | Entered Materials 246 | -10/Materials | Lost 3 parts (1p1n1w) 315 | -10/Materials | Build established: Mutant 607 | -10/Materials | Discovered new exit (range 16) 774 | -10/Materials | Core integrity fell below 50% 893 | -10/Materials | Entered another Materials area 893 | -9/Materials | Evolved 2 slots: Propulsion x2 1092 | -9/Materials | Self-destructed Last Messages --------------- 00995_ Connecting with Terminal... 00995_ Current location identified: Materials 00995_ ALERT: Suspicious activity at Terminal M007. Dispatching Investigation squad. 00997_ R-06 Scavenger collects Flight Unit. 01007_ ALERT: Hostiles spotted, dispatching reinforcements to Terminal M002. 01013_ K-01 Serf collects debris. 01060_ Y-45 Defender destroyed. 01068_ K-01 Serf collects debris. 01074_ R-06 Scavenger collects Heat Sink. 01076_ G-34 Mercenary destroyed. 01077_ R-06 Scavenger collects Hvy. Assault Rifle. 01078_ G-34 Mercenary destroyed. 01081_ Imp. Hover Unit destroyed. 01085_ G-34 Mercenary knocked back. 01087_ Imp. Hover Unit destroyed. 01090_ G-34 Mercenary destroyed. 01092_ Lgt. Assault Rifle destroyed. Map ----- +----------------------------------------------------+ | | | | | | | | | | | | | | | | | | | | | | | ?????????????????????????????????????????????????? | | ?????????????????????????????????????????????????? | | ?????????????????????????????????????????????????? | | ?????????????????????????????????????????????????? | | ?????????????????????????????????????????????????? | | ?????????????????????????????????????????????????? | | ??????????????????????????????################### | | ??????????????????????######### # + | | ??????????????????????# # # ##### ### | | ??????????????????????# """"" # # #???# #?? | | ??????????????????????# """"" + + #???# #?? | | ??????????????????????# """"" # # #???# #?? | | ??????????????????????# # # #???# #?? | | ??????????????????????######### ########???# #?? | | ???????????????????????# @""" # #??????????# #?? | | ???????????????????????#gl""" # %########???# ### | | ???????????????????????#gg"""%#[! # ! #???# | | ???????????????????????#g*g! +% / #???# ### | | ???????????????????????#g[[= #*! # """ #???# #?? | | ???????????????????????# =%% # # R" #???# #?? | | ???????????????????????######## # """ #???# #?? | | ??????????????????????????????# #[ #???# #?? | | ??????????????????????????????# #####+##???# #?? | | ??????????????????????????????# #???# #????# ### | | ???????????????????????######## ##### ###### # | | ???????????????????????# | | ???????????????????????# | | ??????????????????? | | ???????????????????????## ######+############### | | ??????????????????????????????? ?????????####### | | ??????????????????????????????? ""?????????# | | ??????????????????????????????? ""?????????# "" | | ??????????????????????????????? ""?????????# "T | | ??????????????????????????????? ?????????# "" [ | | ??????????????????????????????? ???????????# ! | | ??????????????????????????????? ???????????# ! | | ??????????????????????????????? ???????????###+### | | ??????????????????????????????? ???????????# # | | ???????????????????????????????#???????????# | +----------------------------------------------------+ Best States ------------- Heat Dissipation 28 Energy Generation 10 Energy Capacity 250 Matter Stores 300 Matter Capacity 300 Sight Range 18 Terrain Scan Density 10 Evasion (%) 63 Recoil Reduction 2 Item Schematics ----------------- None Robot Schematics ------------------ None Fabricated ------------ Nothing Alien Tech Used ----------------- None Achievements -------------- None Challenges ------------ None Game ------ Seed TiamatFluxShredder Manual? 0 Play Time 00:12:41 Cumulative 55.1 hours Start 2024.04.28 @ 16:15:39 End 2024.04.28 @ 16:25:34 Sessions 1 Manual Loads 0 Difficulty Rogue Special Mode None Game No. 90 Rogue 74 Adventurer 16 Explorer 0 Win Type - Total 0 Types 0/0/0/0/0/0/0/0/0 Lore% 17 Gallery% 36 Achievement% 27 Wizard Run 0 Options --------- Layout 1 ASCII 0 Keyboard 0 Movement Mouse Keybinds 0 Fullscreen 2 Font 24/Smallcaps Map View 50x35 Zoom Use 0% Tactical HUD 1 Map Filters NONE Filters NONE Steam 1 RUN: b4fcdf16-fb5e-4d1c-a38a-fcfa62fc7d36